[Event "Live Chess"]
[Site "Chess.com"]
[Date "2024.06.01"]
[Round "-"]
[White "missedJariChance"]
[Black "MagnersCarlsberg2870"]
[Result "0-1"]
[WhiteElo "1341"]
[BlackElo "1799"]
[TimeControl "300"]
[EndTime "13:21:35 PDT"]
[Termination "MagnersCarlsberg2870 won by checkmate"]

1. b3 {[%clk 0:04:56]} 1... e5 {[%clk 0:04:54.9]} 2. Nf3 {[%clk 0:04:50.8]} 2...
Nc6 {[%clk 0:04:52]} 3. Bb2 {[%clk 0:04:49.1]} 3... e4 {[%clk 0:04:50.9]} 4. Nd4
{[%clk 0:04:46.2]} 4... Nf6 {[%clk 0:04:47.8]} 5. e3 {[%clk 0:04:43.6]} 5... Bc5
{[%clk 0:04:46.6]} 6. Nxc6 {[%clk 0:04:32]} 6... dxc6 {[%clk 0:04:45.2]} 7. Bc4
{[%clk 0:04:29.9]} 7... Bf5 {[%clk 0:04:42]} 8. O-O {[%clk 0:04:26.2]} 8... h5
{[%clk 0:04:39.8]} 9. d3 {[%clk 0:04:13.5]} 9... Qe7 {[%clk 0:04:34.8]} 10. dxe4
{[%clk 0:04:11.3]} 10... Nxe4 {[%clk 0:04:23.8]} 11. Bd3 {[%clk 0:03:58.5]}
11... h4 {[%clk 0:04:19.6]} 12. Nd2 {[%clk 0:03:54.7]} 12... Nxd2 {[%clk
0:04:13.9]} 13. Qxd2 {[%clk 0:03:51.4]} 13... Bxd3 {[%clk 0:04:09.6]} 14. cxd3
{[%clk 0:03:48]} 14... h3 {[%clk 0:04:07.8]} 15. gxh3 {[%clk 0:03:41.3]} 15...
Qg5+ {[%clk 0:04:04.8]} 16. Kh1 {[%clk 0:03:39.8]} 16... Rxh3 {[%clk 0:04:03.3]}
17. Rg1 {[%clk 0:03:37.9]} 17... Qh5 {[%clk 0:03:54.2]} 18. Rg2 {[%clk
0:03:35.4]} 18... O-O-O {[%clk 0:03:41.9]} 19. Rag1 {[%clk 0:03:28]} 19... g6
{[%clk 0:03:40.3]} 20. Bf6 {[%clk 0:03:15.9]} 20... Rd5 {[%clk 0:03:24.3]} 21.
d4 {[%clk 0:03:07.1]} 21... Bd6 {[%clk 0:03:22.3]} 22. f4 {[%clk 0:02:56.3]}
22... Qf3 {[%clk 0:03:16.8]} 23. Be5 {[%clk 0:02:14.6]} 23... f6 {[%clk
0:03:12.8]} 24. Bxd6 {[%clk 0:02:09.1]} 24... Rxh2+ {[%clk 0:03:11.5]} 25. Kxh2
{[%clk 0:02:06.5]} 25... Rh5# {[%clk 0:03:10.1]} 0-1

[Event "Live Chess"]
[Site "Chess.com"]
[Date "2024.06.01"]
[Round "-"]
[White "chessfiction"]
[Black "JohanKjeldahl"]
[Result "0-1"]
[WhiteElo "2380"]
[BlackElo "1856"]
[TimeControl "300"]
[EndTime "13:21:42 PDT"]
[Termination "JohanKjeldahl won by resignation"]

1. e4 {[%clk 0:04:52.3]} 1... c5 {[%clk 0:04:58.2]} 2. d4 {[%clk 0:04:51.2]}
2... cxd4 {[%clk 0:04:56.8]} 3. c3 {[%clk 0:04:51.1]} 3... dxc3 {[%clk
0:04:55.1]} 4. Nxc3 {[%clk 0:04:51]} 4... e6 {[%clk 0:04:53.7]} 5. Nf3 {[%clk
0:04:49.6]} 5... Nc6 {[%clk 0:04:52.1]} 6. Bc4 {[%clk 0:04:48.9]} 6... a6 {[%clk
0:04:49.4]} 7. Bf4 {[%clk 0:04:48.1]} 7... b5 {[%clk 0:04:48]} 8. Bd5 {[%clk
0:04:46.2]} 8... Bb7 {[%clk 0:04:43.5]} 9. O-O {[%clk 0:04:43.7]} 9... Nf6
{[%clk 0:04:42.2]} 10. Re1 {[%clk 0:04:40.2]} 10... Be7 {[%clk 0:04:41.1]} 11.
Rc1 {[%clk 0:04:39.4]} 11... O-O {[%clk 0:04:39.2]} 12. Nd4 {[%clk 0:04:38.2]}
12... exd5 {[%clk 0:04:30.6]} 13. exd5 {[%clk 0:04:33.6]} 13... Nxd4 {[%clk
0:04:27.2]} 14. Qxd4 {[%clk 0:04:31.1]} 14... d6 {[%clk 0:04:19.5]} 15. Re3
{[%clk 0:04:14.6]} 15... Rc8 {[%clk 0:04:16.2]} 16. h4 {[%clk 0:04:09.7]} 16...
Rc4 {[%clk 0:04:14.8]} 17. Qd2 {[%clk 0:04:06.7]} 17... Rxf4 {[%clk 0:04:05.4]}
18. Rxe7 {[%clk 0:04:06.1]} 18... Qxe7 {[%clk 0:04:03.9]} 19. Qxf4 {[%clk
0:04:05.1]} 19... Nxd5 {[%clk 0:04:01.2]} 20. Nxd5 {[%clk 0:04:01.8]} 20... Bxd5
{[%clk 0:04:00.2]} 21. Rd1 {[%clk 0:04:00.4]} 21... Bxa2 {[%clk 0:03:55.6]} 22.
Rxd6 {[%clk 0:03:58.6]} 22... Bc4 {[%clk 0:03:41.3]} 23. Rxa6 {[%clk 0:03:55.8]}
23... h6 {[%clk 0:03:39.6]} 24. g4 {[%clk 0:03:53.3]} 24... Rd8 {[%clk
0:03:31.2]} 25. g5 {[%clk 0:03:51.3]} 25... Rd1+ {[%clk 0:03:24.3]} 26. Kh2
{[%clk 0:03:49.7]} 26... hxg5 {[%clk 0:03:20.4]} 27. hxg5 {[%clk 0:03:45.9]}
27... Bd5 {[%clk 0:03:03.3]} 28. Rb6 {[%clk 0:03:18.7]} 28... Qe4 {[%clk
0:02:35.6]} 29. Qxe4 {[%clk 0:03:07.4]} 29... Bxe4 {[%clk 0:02:33.6]} 30. Rxb5
{[%clk 0:03:07.3]} 30... Kh7 {[%clk 0:02:29.5]} 31. Kg3 {[%clk 0:02:58.5]} 31...
Kg6 {[%clk 0:02:24.1]} 32. f4 {[%clk 0:02:56.7]} 32... Rd3+ {[%clk 0:02:21.3]}
33. Kf2 {[%clk 0:02:54.9]} 33... Rf3+ {[%clk 0:02:12.3]} 34. Ke2 {[%clk
0:02:53.7]} 34... Rxf4 {[%clk 0:02:10.5]} 35. Ke3 {[%clk 0:02:53.2]} 35... Rg4
{[%clk 0:02:05.7]} 36. b4 {[%clk 0:02:46.4]} 36... Bf5 {[%clk 0:02:01.6]} 37.
Rb7 {[%clk 0:02:42.7]} 37... Rxg5 {[%clk 0:01:55.7]} 38. b5 {[%clk 0:02:38.3]}
38... Rg3+ {[%clk 0:01:50.8]} 39. Kf4 {[%clk 0:02:37]} 39... Rb3 {[%clk
0:01:45.9]} 40. b6 {[%clk 0:02:36]} 40... Bh3 {[%clk 0:01:37.8]} 41. Rb8 {[%clk
0:02:32.9]} 41... Bg2 {[%clk 0:01:35.8]} 42. Ke5 {[%clk 0:02:31.6]} 42... f6+
{[%clk 0:01:33.8]} 43. Ke6 {[%clk 0:02:29.6]} 43... Kg5 {[%clk 0:01:20.7]} 44.
Kf7 {[%clk 0:02:25.5]} 44... g6 {[%clk 0:01:19.7]} 45. Kg7 {[%clk 0:02:22.7]}
45... Be4 {[%clk 0:01:17.5]} 46. Kf7 {[%clk 0:02:19]} 46... f5 {[%clk
0:01:15.7]} 47. Ke6 {[%clk 0:02:17.2]} 47... f4 {[%clk 0:01:14.7]} 48. Ke5
{[%clk 0:02:16.7]} 48... Rb4 {[%clk 0:01:08.6]} 49. Rf8 {[%clk 0:02:12.3]} 49...
f3 {[%clk 0:01:07.1]} 50. Rf6 {[%clk 0:02:09.8]} 50... Bf5 {[%clk 0:00:58.4]}
51. Rd6 {[%clk 0:02:03.9]} 51... f2 {[%clk 0:00:53.7]} 52. Rd1 {[%clk
0:02:01.4]} 52... Rxb6 {[%clk 0:00:50.7]} 53. Rf1 {[%clk 0:01:58.8]} 53... Rb2
{[%clk 0:00:49.2]} 54. Kd4 {[%clk 0:01:56.6]} 54... Bh3 {[%clk 0:00:46.3]} 0-1

[Event "Live Chess"]
[Site "Chess.com"]
[Date "2024.06.01"]
[Round "-"]
[White "lateforthesky"]
[Black "bonantagulo"]
[Result "1-0"]
[WhiteElo "2154"]
[BlackElo "2069"]
[TimeControl "300"]
[EndTime "13:21:58 PDT"]
[Termination "lateforthesky won by resignation"]

1. e4 {[%clk 0:04:57]} 1... c5 {[%clk 0:04:54.5]} 2. Nf3 {[%clk 0:04:56]} 2...
e6 {[%clk 0:04:53.8]} 3. c3 {[%clk 0:04:54.4]} 3... Nf6 {[%clk 0:04:52.5]} 4. e5
{[%clk 0:04:53.3]} 4... Nd5 {[%clk 0:04:52]} 5. d4 {[%clk 0:04:52.5]} 5... cxd4
{[%clk 0:04:51.4]} 6. cxd4 {[%clk 0:04:49.1]} 6... d6 {[%clk 0:04:51]} 7. Bc4
{[%clk 0:04:46.6]} 7... Nc6 {[%clk 0:04:45.3]} 8. O-O {[%clk 0:04:42.6]} 8...
Be7 {[%clk 0:04:44.3]} 9. Qe2 {[%clk 0:04:35.4]} 9... O-O {[%clk 0:04:39.2]} 10.
a3 {[%clk 0:04:33.4]} 10... dxe5 {[%clk 0:04:38.3]} 11. dxe5 {[%clk 0:04:31.8]}
11... Qc7 {[%clk 0:04:35.3]} 12. Bd2 {[%clk 0:04:20.3]} 12... Rd8 {[%clk
0:04:30.3]} 13. Nc3 {[%clk 0:04:18.1]} 13... Nxc3 {[%clk 0:04:27.9]} 14. Bxc3
{[%clk 0:04:17.2]} 14... b6 {[%clk 0:04:19.8]} 15. Rac1 {[%clk 0:04:15.7]} 15...
Bb7 {[%clk 0:04:18.6]} 16. Ba2 {[%clk 0:04:14]} 16... Rac8 {[%clk 0:04:16.7]}
17. h4 {[%clk 0:04:03.4]} 17... Bf8 {[%clk 0:03:59.9]} 18. Bb1 {[%clk 0:03:58]}
18... Ne7 {[%clk 0:03:56.6]} 19. h5 {[%clk 0:03:52.3]} 19... Nd5 {[%clk
0:03:43.2]} 20. Bd2 {[%clk 0:03:38.7]} 20... Qb8 {[%clk 0:03:35.2]} 21. h6
{[%clk 0:03:14.6]} 21... g6 {[%clk 0:03:32.8]} 22. Bg5 {[%clk 0:03:13.1]} 22...
Rxc1 {[%clk 0:03:26.4]} 23. Rxc1 {[%clk 0:03:11.9]} 23... Rc8 {[%clk 0:03:25.5]}
24. Re1 {[%clk 0:03:09.9]} 24... Qc7 {[%clk 0:03:08.9]} 25. Nh2 {[%clk 0:03:04]}
25... Qc4 {[%clk 0:02:45.4]} 26. Qf3 {[%clk 0:02:51.3]} 26... Rc7 {[%clk
0:01:48.7]} 27. Be4 {[%clk 0:02:43.2]} 27... Ba6 {[%clk 0:01:31.2]} 28. Ng4
{[%clk 0:02:32.2]} 28... Ne7 {[%clk 0:01:15.6]} 29. Nf6+ {[%clk 0:02:18.9]}
29... Kh8 {[%clk 0:01:14.4]} 30. Ne8 {[%clk 0:02:13.9]} 30... Nf5 {[%clk
0:01:07.8]} 31. Nxc7 {[%clk 0:02:11.2]} 31... Qxc7 {[%clk 0:01:07.7]} 32. Bxf5
{[%clk 0:02:01.7]} 32... gxf5 {[%clk 0:01:02.6]} 33. Bf6+ {[%clk 0:01:59.5]}
33... Kg8 {[%clk 0:01:00.6]} 34. Qg3+ {[%clk 0:01:58.7]} 1-0

[Event "Live Chess"]
[Site "Chess.com"]
[Date "2024.06.01"]
[Round "-"]
[White "blunderabit"]
[Black "IanCalvert2"]
[Result "0-1"]
[WhiteElo "1791"]
[BlackElo "1590"]
[TimeControl "300"]
[EndTime "13:22:03 PDT"]
[Termination "IanCalvert2 won on time"]

1. e4 {[%clk 0:04:50.5]} 1... d5 {[%clk 0:04:57.8]} 2. exd5 {[%clk 0:04:44.8]}
2... Qxd5 {[%clk 0:04:56.3]} 3. Nc3 {[%clk 0:04:43.8]} 3... Qd6 {[%clk
0:04:55.2]} 4. d4 {[%clk 0:04:36.8]} 4... Nf6 {[%clk 0:04:53.5]} 5. Nf3 {[%clk
0:04:35.1]} 5... a6 {[%clk 0:04:44.8]} 6. Ne5 {[%clk 0:04:27.9]} 6... Nc6 {[%clk
0:04:36]} 7. Nc4 {[%clk 0:04:22.9]} 7... Qxd4 {[%clk 0:04:28.5]} 8. Be3 {[%clk
0:04:13.3]} 8... Qxd1+ {[%clk 0:04:24.6]} 9. Rxd1 {[%clk 0:04:12.8]} 9... Bf5
{[%clk 0:04:18.9]} 10. Rd2 {[%clk 0:04:05.7]} 10... e6 {[%clk 0:04:13.2]} 11.
Be2 {[%clk 0:03:59.5]} 11... Bb4 {[%clk 0:04:00.8]} 12. Bf3 {[%clk 0:03:57.6]}
12... O-O {[%clk 0:03:54.9]} 13. Bxc6 {[%clk 0:03:52.7]} 13... bxc6 {[%clk
0:03:50.9]} 14. Bd4 {[%clk 0:03:30.8]} 14... Ne4 {[%clk 0:03:32.1]} 15. Nxe4
{[%clk 0:03:23.5]} 15... Bxd2+ {[%clk 0:03:17.6]} 16. Ncxd2 {[%clk 0:03:20.5]}
16... Bxe4 {[%clk 0:03:06.9]} 17. Nxe4 {[%clk 0:03:18.1]} 17... Rfd8 {[%clk
0:03:05.3]} 18. Bc3 {[%clk 0:03:11.6]} 18... f5 {[%clk 0:02:59]} 19. Nd2 {[%clk
0:03:08]} 19... Rd5 {[%clk 0:02:51]} 20. Nf3 {[%clk 0:02:55.7]} 20... Rad8
{[%clk 0:02:44.4]} 21. O-O {[%clk 0:02:52.1]} 21... Rd1 {[%clk 0:02:39.8]} 22.
g3 {[%clk 0:02:44.6]} 22... h6 {[%clk 0:02:19.8]} 23. Be5 {[%clk 0:02:40.7]}
23... R8d7 {[%clk 0:02:07.3]} 24. Kg2 {[%clk 0:02:25]} 24... g5 {[%clk
0:01:56.2]} 25. h3 {[%clk 0:01:47]} 25... Rxf1 {[%clk 0:01:41.7]} 26. Kxf1
{[%clk 0:01:44.1]} 26... Kf7 {[%clk 0:01:40.5]} 27. Ke2 {[%clk 0:01:40.3]} 27...
c5 {[%clk 0:01:31.5]} 28. Bc3 {[%clk 0:01:38]} 28... Rd5 {[%clk 0:01:22.1]} 29.
Ne5+ {[%clk 0:01:35]} 29... Ke7 {[%clk 0:01:14.4]} 30. g4 {[%clk 0:00:50.2]}
30... f4 {[%clk 0:01:04.7]} 31. Nf3 {[%clk 0:00:42.5]} 31... Kd6 {[%clk
0:00:57]} 32. Bg7 {[%clk 0:00:38.9]} 32... e5 {[%clk 0:00:53.1]} 33. Bxh6 {[%clk
0:00:35.7]} 33... e4 {[%clk 0:00:51.9]} 34. Nxg5 {[%clk 0:00:32.6]} 34... Ke5
{[%clk 0:00:42.1]} 35. h4 {[%clk 0:00:23.2]} 35... Rd4 {[%clk 0:00:21]} 36. Nh3
{[%clk 0:00:20.2]} 36... e3 {[%clk 0:00:14.1]} 37. Bg7+ {[%clk 0:00:17.9]} 37...
Ke4 {[%clk 0:00:11.2]} 38. f3+ {[%clk 0:00:07.7]} 38... Kd5 {[%clk 0:00:08.6]}
39. Bxd4 {[%clk 0:00:04.5]} 39... cxd4 {[%clk 0:00:07.5]} 40. Nxf4+ {[%clk
0:00:03.9]} 40... Ke5 {[%clk 0:00:05.8]} 41. Nd3+ {[%clk 0:00:03.4]} 41... Kf6
{[%clk 0:00:03.1]} 0-1

[Event "Live Chess"]
[Site "Chess.com"]
[Date "2024.06.01"]
[Round "-"]
[White "CCGoodKnightRookie"]
[Black "Grace6363"]
[Result "1-0"]
[WhiteElo "2248"]
[BlackElo "1149"]
[TimeControl "300"]
[EndTime "13:22:04 PDT"]
[Termination "CCGoodKnightRookie won on time"]

1. d4 {[%clk 0:04:57.9]} 1... Nf6 {[%clk 0:04:54.5]} 2. Nc3 {[%clk 0:04:56.7]}
2... g6 {[%clk 0:04:53.8]} 3. e4 {[%clk 0:04:54.2]} 3... d6 {[%clk 0:04:52.5]}
4. h3 {[%clk 0:04:51.9]} 4... h5 {[%clk 0:04:49.2]} 5. f4 {[%clk 0:04:50]} 5...
Nc6 {[%clk 0:04:44.4]} 6. e5 {[%clk 0:04:47.9]} 6... dxe5 {[%clk 0:04:43.1]} 7.
fxe5 {[%clk 0:04:46.5]} 7... Ng8 {[%clk 0:04:35.5]} 8. Nf3 {[%clk 0:04:44.5]}
8... Bf5 {[%clk 0:04:31]} 9. Bb5 {[%clk 0:04:38.8]} 9... a6 {[%clk 0:04:26.7]}
10. Bxc6+ {[%clk 0:04:35.9]} 10... bxc6 {[%clk 0:04:26.1]} 11. O-O {[%clk
0:04:35.5]} 11... e6 {[%clk 0:04:18]} 12. Bg5 {[%clk 0:04:25.1]} 12... Be7
{[%clk 0:04:14.5]} 13. Bxe7 {[%clk 0:04:23.5]} 13... Qxe7 {[%clk 0:04:08.8]} 14.
Ne2 {[%clk 0:04:14.2]} 14... Nh6 {[%clk 0:04:00.8]} 15. c3 {[%clk 0:04:11.6]}
15... g5 {[%clk 0:03:56.6]} 16. Qa4 {[%clk 0:04:03.2]} 16... Kd7 {[%clk
0:03:45.9]} 17. Ng3 {[%clk 0:03:53.6]} 17... Bg6 {[%clk 0:03:35.8]} 18. Rad1
{[%clk 0:03:49.2]} 18... h4 {[%clk 0:03:24]} 19. d5 {[%clk 0:03:43.4]} 19...
Qc5+ {[%clk 0:03:17.3]} 20. Nd4 {[%clk 0:03:28.2]} 20... hxg3 {[%clk 0:03:11.1]}
21. dxe6+ {[%clk 0:03:14.1]} 21... fxe6 {[%clk 0:03:07]} 22. Kh1 {[%clk
0:03:06.8]} 22... Kc8 {[%clk 0:02:34.4]} 23. Nxe6 {[%clk 0:02:57.3]} 23... Qb5
{[%clk 0:02:13.4]} 24. Qd4 {[%clk 0:02:50.2]} 24... Qd5 {[%clk 0:02:01.4]} 25.
Qxd5 {[%clk 0:02:38.2]} 25... cxd5 {[%clk 0:02:00.5]} 26. Rxd5 {[%clk
0:02:37.4]} 26... Ng4 {[%clk 0:01:59]} 27. Rc5 {[%clk 0:02:12.5]} 27... Nf2+
{[%clk 0:01:51.9]} 28. Kg1 {[%clk 0:02:10]} 28... Ra7 {[%clk 0:01:38.4]} 29.
Nxg5 {[%clk 0:02:04.1]} 29... Bd3 {[%clk 0:01:26.1]} 30. Re1 {[%clk 0:01:57.7]}
30... Re8 {[%clk 0:01:09.7]} 31. e6 {[%clk 0:01:52.4]} 31... Bg6 {[%clk
0:00:58.9]} 32. e7 {[%clk 0:01:41.7]} 32... Nd3 {[%clk 0:00:56.9]} 33. Rce5
{[%clk 0:01:23.1]} 33... Nxe1 {[%clk 0:00:54.8]} 34. Rxe1 {[%clk 0:01:21.5]}
34... c6 {[%clk 0:00:52.5]} 35. Nf3 {[%clk 0:01:08.3]} 35... Raxe7 {[%clk
0:00:47.3]} 36. Rd1 {[%clk 0:01:04.9]} 36... Bh5 {[%clk 0:00:37.3]} 37. Kf1
{[%clk 0:00:58.4]} 37... Bxf3 {[%clk 0:00:36.2]} 38. gxf3 {[%clk 0:00:57.6]}
38... Re3 {[%clk 0:00:31.7]} 39. Kg2 {[%clk 0:00:52.5]} 39... Rf8 {[%clk
0:00:26.3]} 40. Rf1 {[%clk 0:00:46.1]} 40... Re2+ {[%clk 0:00:21.9]} 41. Kxg3
{[%clk 0:00:44.8]} 41... Rxb2 {[%clk 0:00:21.3]} 42. h4 {[%clk 0:00:39.9]} 42...
Re2 {[%clk 0:00:18.1]} 43. h5 {[%clk 0:00:37]} 43... Rg8+ {[%clk 0:00:17.5]} 44.
Kf4 {[%clk 0:00:36]} 44... Re7 {[%clk 0:00:16.2]} 45. Rd1 {[%clk 0:00:32.8]}
45... Rh7 {[%clk 0:00:14.8]} 46. Rd6 {[%clk 0:00:30]} 46... Rxh5 {[%clk
0:00:13.8]} 47. Rxc6+ {[%clk 0:00:29.2]} 47... Kd7 {[%clk 0:00:12.1]} 48. Rxa6
{[%clk 0:00:27.7]} 48... Rf8+ {[%clk 0:00:11.7]} 49. Ke3 {[%clk 0:00:26.8]}
49... Rc5 {[%clk 0:00:11.1]} 50. Kd4 {[%clk 0:00:25.8]} 50... Rfc8 {[%clk
0:00:10.7]} 51. Ra3 {[%clk 0:00:22.4]} 51... Rc4+ {[%clk 0:00:09.8]} 52. Kd3
{[%clk 0:00:21.9]} 52... R8c5 {[%clk 0:00:09.1]} 53. Ra7+ {[%clk 0:00:20.4]}
53... Kd6 {[%clk 0:00:08.3]} 54. Ra3 {[%clk 0:00:20]} 54... Ke5 {[%clk
0:00:07.8]} 55. Kc2 {[%clk 0:00:18.4]} 55... Kf4 {[%clk 0:00:07.3]} 56. Ra8
{[%clk 0:00:16.2]} 56... Kxf3 {[%clk 0:00:06.7]} 57. Kd1 {[%clk 0:00:15.2]}
57... Rxc3 {[%clk 0:00:06.2]} 58. Kd2 {[%clk 0:00:14.2]} 58... Rc2+ {[%clk
0:00:05.7]} 59. Kd3 {[%clk 0:00:13.8]} 59... R5c3+ {[%clk 0:00:05.1]} 60. Kd4
{[%clk 0:00:13.2]} 60... Rc4+ {[%clk 0:00:04.7]} 61. Kd5 {[%clk 0:00:12.6]}
61... R2c3 {[%clk 0:00:04.4]} 62. Rf8+ {[%clk 0:00:11.1]} 62... Ke2 {[%clk
0:00:02.6]} 63. Re8+ {[%clk 0:00:10.7]} 63... Kd3 {[%clk 0:00:01.9]} 64. Rh8
{[%clk 0:00:09.8]} 64... Kd2 {[%clk 0:00:00.4]} 65. Kd6 {[%clk 0:00:09.7]} 65...
Kc2 {[%clk 0:00:00.2]} 66. Rh7 {[%clk 0:00:08.4]} 1-0

[Event "Live Chess"]
[Site "Chess.com"]
[Date "2024.06.01"]
[Round "-"]
[White "KeithArkell"]
[Black "chessgoatpawel"]
[Result "1/2-1/2"]
[WhiteElo "2451"]
[BlackElo "2036"]
[TimeControl "300"]
[EndTime "13:22:17 PDT"]
[Termination "Game drawn by repetition"]

1. d4 {[%clk 0:04:57]} 1... Nf6 {[%clk 0:04:58.7]} 2. Nf3 {[%clk 0:04:56.3]}
2... g6 {[%clk 0:04:57.8]} 3. c4 {[%clk 0:04:55.6]} 3... Bg7 {[%clk 0:04:56.9]}
4. g3 {[%clk 0:04:55.2]} 4... O-O {[%clk 0:04:56.1]} 5. Bg2 {[%clk 0:04:54.5]}
5... d5 {[%clk 0:04:54.5]} 6. cxd5 {[%clk 0:04:53.4]} 6... Nxd5 {[%clk
0:04:53.7]} 7. Nc3 {[%clk 0:04:52.7]} 7... c6 {[%clk 0:04:52.1]} 8. O-O {[%clk
0:04:51.5]} 8... Nd7 {[%clk 0:04:50.2]} 9. e4 {[%clk 0:04:49.7]} 9... Nxc3
{[%clk 0:04:46.3]} 10. bxc3 {[%clk 0:04:49.6]} 10... e5 {[%clk 0:04:44]} 11. Be3
{[%clk 0:04:48.1]} 11... exd4 {[%clk 0:04:42.6]} 12. cxd4 {[%clk 0:04:47.5]}
12... Re8 {[%clk 0:04:40.8]} 13. Qc2 {[%clk 0:04:45.1]} 13... Qe7 {[%clk
0:04:38.7]} 14. e5 {[%clk 0:04:33.3]} 14... Nb6 {[%clk 0:04:36.1]} 15. Bg5
{[%clk 0:04:32.1]} 15... f6 {[%clk 0:04:31.8]} 16. exf6 {[%clk 0:04:30.9]} 16...
Bxf6 {[%clk 0:04:31.7]} 17. Bxf6 {[%clk 0:04:27.9]} 17... Qxf6 {[%clk
0:04:31.6]} 18. Rfe1 {[%clk 0:04:26.3]} 18... Bg4 {[%clk 0:04:28.2]} 19. Qb3+
{[%clk 0:04:23.8]} 19... Kh8 {[%clk 0:04:20.5]} 20. Ne5 {[%clk 0:04:22.9]} 20...
Be6 {[%clk 0:04:16.5]} 21. Qa3 {[%clk 0:04:09.4]} 21... Rf8 {[%clk 0:04:05.7]}
22. f4 {[%clk 0:04:02.2]} 22... Qd8 {[%clk 0:03:56.8]} 23. Rad1 {[%clk
0:03:47.3]} 23... Bd5 {[%clk 0:03:53]} 24. Rd2 {[%clk 0:03:32.7]} 24... Bxg2
{[%clk 0:03:49]} 25. Kxg2 {[%clk 0:03:27.2]} 25... Qd5+ {[%clk 0:03:46.1]} 26.
Kg1 {[%clk 0:03:24.9]} 26... Nc4 {[%clk 0:03:35.3]} 27. Nxc4 {[%clk 0:03:18.5]}
27... Qxc4 {[%clk 0:03:35.2]} 28. Qb3 {[%clk 0:03:13.7]} 28... Qxb3 {[%clk
0:03:06.7]} 29. axb3 {[%clk 0:03:13.6]} 29... Kg7 {[%clk 0:02:46.7]} 30. d5
{[%clk 0:03:11.5]} 30... Rad8 {[%clk 0:02:26.7]} 31. Red1 {[%clk 0:03:10]} 31...
cxd5 {[%clk 0:02:14.6]} 32. Rxd5 {[%clk 0:03:09.9]} 32... Rxd5 {[%clk 0:02:12]}
33. Rxd5 {[%clk 0:03:09.8]} 33... Rf7 {[%clk 0:02:10.4]} 34. Kf2 {[%clk
0:03:08.4]} 34... Rc7 {[%clk 0:02:07.9]} 35. b4 {[%clk 0:03:06]} 35... a6 {[%clk
0:02:01.9]} 36. Ke3 {[%clk 0:03:04]} 36... Kf6 {[%clk 0:01:55.6]} 37. h4 {[%clk
0:03:02.8]} 37... Ke6 {[%clk 0:01:54.1]} 38. Re5+ {[%clk 0:03:01.8]} 38... Kf6
{[%clk 0:01:52.5]} 39. h5 {[%clk 0:03:01.1]} 39... Rc3+ {[%clk 0:01:49.8]} 40.
Kf2 {[%clk 0:02:59.7]} 40... Rc2+ {[%clk 0:01:48.8]} 41. Kf3 {[%clk 0:02:58.4]}
41... Rc3+ {[%clk 0:01:47.6]} 42. Kg4 {[%clk 0:02:57.5]} 42... Rc4 {[%clk
0:01:43.9]} 43. b5 {[%clk 0:02:56.5]} 43... Ra4 {[%clk 0:01:36.1]} 44. bxa6
{[%clk 0:02:55]} 44... bxa6 {[%clk 0:01:34.6]} 45. Rc5 {[%clk 0:02:53.1]} 45...
Ra1 {[%clk 0:01:28.6]} 46. Rc7 {[%clk 0:02:49.6]} 46... gxh5+ {[%clk 0:01:21.3]}
47. Kxh5 {[%clk 0:02:49.5]} 47... Rh1+ {[%clk 0:01:20]} 48. Kg4 {[%clk
0:02:48.8]} 48... h5+ {[%clk 0:01:18.5]} 49. Kf3 {[%clk 0:02:48.2]} 49... Ra1
{[%clk 0:01:16.5]} 50. Rc5 {[%clk 0:02:35.5]} 50... Kg6 {[%clk 0:01:14.5]} 51.
Rg5+ {[%clk 0:02:33.5]} 51... Kh6 {[%clk 0:01:12.8]} 52. Kg2 {[%clk 0:02:32.8]}
52... a5 {[%clk 0:01:11.3]} 53. Rb5 {[%clk 0:02:28.3]} 53... Kg6 {[%clk
0:01:07.1]} 54. Rb6+ {[%clk 0:02:27.6]} 54... Kg7 {[%clk 0:01:01.3]} 55. Ra6
{[%clk 0:02:23.6]} 55... a4 {[%clk 0:00:59]} 56. Kh3 {[%clk 0:02:22.9]} 56...
Rh1+ {[%clk 0:00:57.3]} 57. Kg2 {[%clk 0:02:22.2]} 57... Ra1 {[%clk 0:00:56.2]}
58. f5 {[%clk 0:02:21.4]} 58... a3 {[%clk 0:00:54.5]} 59. Kh3 {[%clk 0:02:20.1]}
59... Rh1+ {[%clk 0:00:52.4]} 60. Kg2 {[%clk 0:02:19.1]} 60... Ra1 {[%clk
0:00:52]} 61. Rg6+ {[%clk 0:02:04.9]} 61... Kf7 {[%clk 0:00:43]} 62. Ra6 {[%clk
0:02:03.5]} 62... a2 {[%clk 0:00:40.2]} 63. Kh2 {[%clk 0:02:01.2]} 63... Kg7
{[%clk 0:00:37.1]} 64. Rg6+ {[%clk 0:01:58.3]} 64... Kf7 {[%clk 0:00:35.6]} 65.
Ra6 {[%clk 0:01:56.3]} 65... Kg7 {[%clk 0:00:34.8]} 66. Kg2 {[%clk 0:01:55.2]}
66... Kf7 {[%clk 0:00:33.9]} 67. Kh2 {[%clk 0:01:33.1]} 1/2-1/2

[Event "Live Chess"]
[Site "Chess.com"]
[Date "2024.06.01"]
[Round "-"]
[White "Brooms1989"]
[Black "ACM42"]
[Result "0-1"]
[WhiteElo "1110"]
[BlackElo "2169"]
[TimeControl "300"]
[EndTime "13:22:45 PDT"]
[Termination "ACM42 won by resignation"]

1. e4 {[%clk 0:04:57]} 1... e6 {[%clk 0:04:54.3]} 2. d4 {[%clk 0:04:55.4]} 2...
d5 {[%clk 0:04:52.9]} 3. Bd3 {[%clk 0:04:54.5]} 3... Nf6 {[%clk 0:04:51]} 4. e5
{[%clk 0:04:50.2]} 4... Nfd7 {[%clk 0:04:45.2]} 5. f4 {[%clk 0:04:48.5]} 5... c5
{[%clk 0:04:39.1]} 6. Nf3 {[%clk 0:04:44.5]} 6... Nc6 {[%clk 0:04:22]} 7. c3
{[%clk 0:04:37.9]} 7... Qb6 {[%clk 0:04:13.7]} 8. O-O {[%clk 0:04:20.9]} 8...
cxd4 {[%clk 0:04:11.8]} 9. cxd4 {[%clk 0:04:14.4]} 9... Nxd4 {[%clk 0:04:09.6]}
10. Nxd4 {[%clk 0:04:14.3]} 10... Qxd4+ {[%clk 0:04:07.4]} 11. Kh1 {[%clk
0:04:13.9]} 11... Bc5 {[%clk 0:03:47.5]} 12. Nc3 {[%clk 0:03:53.7]} 12... a6
{[%clk 0:03:44.7]} 13. Qf3 {[%clk 0:03:43]} 13... O-O {[%clk 0:03:37.5]} 14. Qh3
{[%clk 0:03:31]} 14... g6 {[%clk 0:03:28.9]} 15. Ne2 {[%clk 0:03:09.2]} 15...
Qa4 {[%clk 0:03:13.4]} 16. b3 {[%clk 0:02:36.2]} 16... Qa5 {[%clk 0:03:00.4]}
17. g4 {[%clk 0:01:55.8]} 17... b5 {[%clk 0:02:30.1]} 18. f5 {[%clk 0:01:39.7]}
18... exf5 {[%clk 0:02:21.4]} 19. gxf5 {[%clk 0:01:39.6]} 19... Nxe5 {[%clk
0:02:19.2]} 20. fxg6 {[%clk 0:01:34.7]} 20... Bxh3 {[%clk 0:02:06]} 0-1

[Event "Live Chess"]
[Site "Chess.com"]
[Date "2024.06.01"]
[Round "-"]
[White "sebmoran1"]
[Black "MaksymYurii"]
[Result "0-1"]
[WhiteElo "1412"]
[BlackElo "947"]
[TimeControl "300"]
[EndTime "13:22:54 PDT"]
[Termination "MaksymYurii won by checkmate"]

1. e4 {[%clk 0:04:57.2]} 1... e5 {[%clk 0:04:59.9]} 2. Bc4 {[%clk 0:04:56.3]}
2... Nc6 {[%clk 0:04:59.2]} 3. d3 {[%clk 0:04:55.6]} 3... Nf6 {[%clk 0:04:48.8]}
4. f4 {[%clk 0:04:54.4]} 4... Bd6 {[%clk 0:04:41.8]} 5. f5 {[%clk 0:04:47.8]}
5... a5 {[%clk 0:04:34.2]} 6. g4 {[%clk 0:04:45.9]} 6... h6 {[%clk 0:04:29.8]}
7. Nf3 {[%clk 0:04:40.1]} 7... Nxg4 {[%clk 0:04:20.4]} 8. Nc3 {[%clk 0:04:31.3]}
8... Nd4 {[%clk 0:04:07.7]} 9. Nxd4 {[%clk 0:04:16]} 9... Qh4+ {[%clk
0:04:05.7]} 10. Ke2 {[%clk 0:04:07.7]} 10... Qf2# {[%clk 0:03:57.8]} 0-1